bitfinex/quotes_ETHUSD_20220220
["timestamp","ask_amount","ask_price","bid_price","bid_amount"]
[1645376603450,1.60232062,2651.4,2651.2,1.09363932]
[1645376603651,1.60232062,2651.4,2651.2,0.5]
[1645376603859,1.60232062,2651.4,2650.2,2.8304072]
[1645376603860,1.60232062,2651.4,2650.1,1.0]
[1645376604054,1.60232062,2651.4,2650.2,7.0]
[1645376604055,3.06466341,2651.3,2650.2,7.0]
[1645376604254,3.06466341,2651.3,2649.6,1.1492]
[1645376604255,1.60232062,2651.2,2649.9,2.5643666]
[1645376604458,3.06808279,2651.1,2651.0,1.683e-05]
[1645376604656,13.14232062,2651.1,2651.0,1.683e-05]
[1645376604852,20.02203041,2651.1,2651.0,1.683e-05]
[1645376605050,20.17393041,2651.1,2651.0,1.683e-05]
[1645376605250,0.98738593,2650.1,2649.9,2.35365316]
[1645376605452,1.2297,2651.3,2649.5,2.35365316]
[1645376605453,0.4019,2651.0,2649.5,2.35365316]
[1645376605655,4.33139367,2651.3,2649.5,5.85365316]
[1645376605656,1.60288318,2650.9,2649.5,5.85365316]
[1645376605854,1.4797,2651.3,2649.6,1.0]
[1645376606050,1.4797,2651.3,2649.7,3.5]
[1645376606051,1.60275977,2651.2,2649.7,3.5]
[1645376606313,6.60275977,2651.2,2649.8,1.0]
[1645376606504,1.60275977,2651.1,2649.6,2.219]
[1645376606703,1.14535633,2650.1,2649.7,0.1886]
[1645376606906,1.14535633,2650.1,2649.6,2.219]
[1645376607100,0.25,2650.9,2649.6,1.0]
[1645376607300,1.60294463,2650.8,2649.6,3.5]
[1645376607502,1.60294463,2650.7,2649.6,0.3]
[1645376607700,0.29029997,2651.2,2649.7,1.3]
[1645376607901,1.60282978,2651.1,2650.1,0.00217795]
[1645376608302,0.89547498,2650.6,2650.1,0.00217795]
[1645376608704,0.89547498,2650.6,2650.0,0.6]
[1645376608901,0.89547498,2650.6,2650.0,0.3]
[1645376609100,0.89547498,2650.6,2650.2,0.00217791]
[1645376609902,0.89547498,2650.6,2650.0,0.3]
[1645376610151,0.89547498,2650.6,2649.8,2.4639]
[1645376610152,0.89547498,2650.6,2649.9,0.3]
[1645376610357,0.94980343,2650.2,2649.8,2.7639]
[1645376610552,0.94980343,2650.2,2649.8,0.6]
[1645376610749,0.94980343,2650.2,2649.9,0.3]
[1645376610951,0.94980343,2650.2,2649.7,0.35956795]
[1645376611150,3.4,2650.6,2649.7,0.3]
[1645376611350,3.4,2650.6,2649.6,0.4885]
[1645376611551,3.4,2650.6,2649.9,0.002192]
[1645376612352,1.04762754,2650.3,2649.7,1.18810827]
[1645376612750,1.04762754,2650.3,2650.1,0.00219192]
[1645376613554,1.04762754,2650.3,2649.6,0.1885]
[1645376613997,1.04762754,2650.3,2650.1,0.00218991]
[1645376614801,1.04762754,2650.3,2649.6,0.1885]
[1645376614999,1.04762754,2650.3,2650.1,0.00218991]
[1645376615199,6.6627,2650.6,2650.1,0.00218991]
[1645376615400,18.2027,2650.6,2650.1,0.00218991]
[1645376615898,1.60312802,2650.5,2649.6,0.1885]
[1645376616103,13.14312802,2650.5,2649.6,0.1885]
[1645376616299,11.54,2650.5,2650.2,0.00218985]
[1645376616500,0.0043797,2650.1,2649.6,0.1885]
[1645376616699,1.01587885,2649.8,2649.4,1.6]
[1645376617099,1.01587885,2649.8,2649.4,1.65956795]
[1645376617550,0.96587885,2649.8,2649.4,0.6]
[1645376617748,0.96587885,2649.8,2649.3,0.1887]
[1645376617949,0.96587885,2649.8,2649.2,0.1887]
[1645376618149,0.96587885,2649.8,2649.3,0.05956795]
[1645376618752,0.96587885,2649.8,2649.1,0.5]
[1645376618951,0.96587885,2649.8,2648.7,8.9158]
[1645376619251,0.96587885,2649.8,2648.8,0.5]
[1645376619451,0.96587885,2649.8,2648.4,0.6887]
[1645376619452,12.50587885,2649.8,2648.4,0.6887]
[1645376619650,3.1919,2649.7,2648.4,0.6887]
[1645376619854,0.87450931,2649.0,2648.4,1.61915267]
[1645376620050,0.87450931,2649.0,2648.6,0.00427616]
[1645376620252,0.87450931,2649.0,2648.6,0.19297616]
[1645376620750,0.87450931,2649.0,2648.6,0.24826795]
[1645376620950,4.6007,2649.7,2648.6,0.24826795]
[1645376621152,4.6007,2649.7,2648.8,0.9441]
[1645376621404,0.0043797,2650.1,2648.9,3.5]
[1645376621610,0.0043797,2650.1,2649.0,0.1887]
[1645376621803,0.0043797,2650.1,2649.0,2.37896795]
[1645376622108,0.90996648,2649.9,2649.3,1.83430457]
[1645376622306,3.4,2649.7,2649.4,0.7887]
[1645376622512,3.4,2649.7,2649.4,0.85065688]
[1645376622702,3.4,2649.7,2649.4,0.79108893]
[1645376622901,3.4,2649.7,2649.4,0.60238893]
[1645376623302,3.4,2649.7,2649.4,0.3]
[1645376623704,1.13594699,2649.5,2649.4,0.00238893]
[1645376623903,1.13594699,2649.5,2649.4,0.30238893]
[1645376624104,1.13594699,2649.5,2649.4,0.00238893]
[1645376624308,1.13594699,2649.5,2649.4,0.30238893]
[1645376624503,1.13594699,2649.5,2649.4,0.3]
[1645376624908,1.13594699,2649.5,2649.3,0.00230834]
[1645376625948,1.13594699,2649.5,2649.1,2.48766]
[1645376626149,1.13594699,2649.5,2649.3,0.00209184]
[1645376626951,1.13594699,2649.5,2649.1,0.6]
[1645376627351,1.13594699,2649.5,2649.3,0.00199089]
[1645376628154,3.4,2649.7,2649.1,0.6]
[1645376628353,3.4,2649.7,2649.3,0.05956795]
[1645376628553,3.4,2649.7,2649.3,0.00199089]
[1645376629211,1.13850171,2649.6,2649.3,0.00199089]
[1645376629415,1.13850171,2649.6,2649.1,0.6]
[1645376629812,1.13850171,2649.6,2649.4,0.00201741]
[1645376630613,1.13850171,2649.6,2649.1,0.6]
[1645376630813,1.13850171,2649.6,2649.4,0.00201741]
[1645376631814,1.13850171,2649.6,2649.2,0.1887]
[1645376632013,1.13850171,2649.6,2649.4,0.00203128]
[1645376633077,1.13850171,2649.6,2649.1,0.6]
[1645376633274,1.13850171,2649.6,2649.4,0.00202742]
[1645376634275,1.13850171,2649.6,2649.0,1.63272]
[1645376634477,1.13850171,2649.6,2649.4,0.00202742]
[1645376635477,1.13850171,2649.6,2649.1,0.6]
[1645376635680,1.13850171,2649.6,2649.4,0.00202553]
[1645376635681,0.84677619,2649.6,2649.4,0.00202553]
[1645376636703,0.84677619,2649.6,2649.1,0.6]
[1645376636899,0.84677619,2649.6,2649.4,0.00202562]
[1645376637801,0.84677619,2649.6,2649.1,0.6]
[1645376638000,0.84677619,2649.6,2649.4,0.00202562]
[1645376639003,0.84677619,2649.6,2649.0,0.5]
[1645376639302,0.84677619,2649.6,2649.4,0.0020259]
[1645376640054,2.72529897,2649.7,2649.4,0.0020259]
[1645376640450,2.72529897,2649.7,2649.3,0.3]
[1645376640649,2.72529897,2649.7,2649.4,0.00202595]
[1645376640854,2.72529897,2649.7,2649.4,0.30202595]
[1645376641450,2.72529897,2649.7,2649.4,0.3]
[1645376641650,2.72529897,2649.7,2649.4,0.00202593]
[1645376641850,1.08856818,2649.6,2649.4,0.00202593]
[1645376642651,1.08856818,2649.6,2649.2,2.86793083]
[1645376642850,2.72529897,2649.7,2649.4,0.0020259]
[1645376643899,2.72529897,2649.7,2649.2,2.86793083]
[1645376644100,2.72529897,2649.7,2649.4,0.00203015]
[1645376644497,2.5819411,2649.7,2649.4,0.00203015]
[1645376645098,2.5819411,2649.7,2649.2,6.36793083]
[1645376645301,2.5819411,2649.7,2649.4,0.00203015]
[1645376645498,0.9285935,2649.8,2649.4,0.00203015]
[1645376646300,0.9285935,2649.8,2649.2,2.86793083]
[1645376646499,0.9285935,2649.8,2649.5,0.00203]
[1645376647553,0.9285935,2649.8,2649.2,1.3]
[1645376647554,0.9285935,2649.8,2649.2,1.6]
[1645376647751,0.9285935,2649.8,2649.5,0.0020297]
[1645376648559,0.9285935,2649.8,2649.4,1.40168068]
[1645376648756,0.0043797,2650.1,2649.4,1.70168068]
[1645376648952,0.0043797,2650.1,2649.5,0.0020297]
[1645376650154,0.85322301,2649.9,2649.7,0.00202968]
[1645376651062,0.85322301,2649.9,2649.4,1.70168068]
[1645376651318,0.85322301,2649.9,2649.7,0.00202913]
[1645376652310,0.85322301,2649.9,2649.4,1.70168068]
[1645376652509,0.85322301,2649.9,2649.7,0.00202913]
[1645376653513,0.85322301,2649.9,2649.2,2.42904299]
[1645376653713,0.85322301,2649.9,2649.7,0.00202914]
[1645376654713,0.85322301,2649.9,2649.2,1.72904299]
[1645376654916,0.85322301,2649.9,2649.7,0.00202921]
[1645376655948,0.85322301,2649.9,2649.2,1.91774299]
[1645376656147,0.85322301,2649.9,2649.7,0.00202921]
[1645376656650,3.65322301,2649.9,2649.7,0.00202921]
[1645376657147,3.65322301,2649.9,2649.2,1.91774299]
[1645376657349,3.65322301,2649.9,2649.7,0.00219642]
[1645376657950,0.85322301,2649.9,2649.7,0.00219642]
[1645376658150,0.85322301,2649.9,2649.2,1.91774299]
[1645376658350,0.83311415,2649.9,2649.2,1.91774299]
[1645376658550,0.83311415,2649.9,2649.7,0.00219642]
[1645376659004,0.0043797,2650.1,2649.7,0.00219642]
[1645376659400,0.0043797,2650.1,2649.3,1.9439]
[1645376659801,0.0043797,2650.1,2649.8,0.00219638]
[1645376660404,0.98106473,2649.9,2649.8,0.00219638]
[1645376660704,0.98106473,2649.9,2649.3,1.0]
[1645376660903,0.98106473,2649.9,2649.8,0.00219594]
[1645376661906,0.98106473,2649.9,2649.1,0.1885]
[1645376662203,0.98106473,2649.9,2649.7,0.00218636]
[1645376663051,0.98106473,2649.9,2649.3,1.48365186]
[1645376663250,0.98106473,2649.9,2649.3,1.78365186]
[1645376663453,0.98106473,2649.9,2649.7,0.00218638]
[1645376664255,0.98106473,2649.9,2649.3,1.78365186]
[1645376664652,0.0043797,2650.1,2649.7,0.00218904]
[1645376665453,0.0043797,2650.1,2649.3,2.72754186]
[1645376665651,1.00213337,2650.0,2649.3,2.72754186]
[1645376665853,1.00213337,2650.0,2649.8,0.00219041]
[1645376666803,1.00213337,2650.0,2649.3,2.72754186]
[1645376666998,1.00213337,2650.0,2649.3,2.61973227]
[1645376668900,0.0043797,2650.1,2649.3,2.61973227]
[1645376669104,0.0043797,2650.1,2649.4,4.5]
[1645376669305,0.0043797,2650.1,2649.5,1.88746]
[1645376669306,2.6043797,2650.1,2649.5,1.88746]
[1645376669601,2.6043797,2650.1,2649.7,0.9437]
[1645376669803,2.6043797,2650.1,2649.8,3.5]
[1645376670065,2.6043797,2650.1,2649.9,1.02353519]
[1645376670267,2.6043797,2650.1,2649.9,2.32353519]
[1645376670466,2.5543797,2650.1,2649.9,2.32353519]
[1645376673067,2.5543797,2650.1,2649.9,0.3]
[1645376673469,2.5543797,2650.1,2649.8,0.3]
[1645376673672,2.5543797,2650.1,2649.7,2.54592572]
[1645376673909,2.5543797,2650.1,2649.7,2.5437]
[1645376674112,2.5543797,2650.1,2649.8,0.86138298]
[1645376678858,2.5543797,2650.1,2649.8,4.36138298]
[1645376679253,2.5543797,2650.1,2649.9,1.3]
[1645376679658,2.5543797,2650.1,2650.0,0.3]
[1645376680654,2.5543797,2650.1,2650.0,0.297889]
[1645376683603,2.5543797,2650.1,2649.8,6.14988298]
[1645376684404,2.5543797,2650.1,2649.8,2.64988298]
[1645376686152,2.5543797,2650.1,2649.8,2.70945093]
[1645376686753,2.5543797,2650.1,2649.8,2.70521159]
[1645376686952,2.5543797,2650.1,2649.8,2.64564364]
[1645376688653,2.5543797,2650.1,2649.8,2.63928336]
[1645376689312,2.5543797,2650.1,2649.8,2.69885131]
[1645376690013,2.5543797,2650.1,2649.8,6.19885131]
[1645376690208,0.25,2650.9,2649.9,17.0]
[1645376690416,0.00863356,2651.0,2650.1,1.8870786]
[1645376690610,0.00863356,2651.0,2650.2,3.5]
[1645376690814,0.92296328,2651.5,2650.3,1.0]
[1645376691013,0.92296328,2651.5,2650.3,2.063]
[1645376691210,0.00804795,2651.0,2650.3,3.90306795]
[1645376691412,0.00804795,2651.0,2650.8,1.01061847]
[1645376691812,0.00804795,2651.0,2650.8,1.61061847]
[1645376692010,2.10804061,2651.5,2650.8,1.61061847]
[1645376692214,0.00200746,2651.3,2650.8,1.61061847]
[1645376692658,0.00200746,2651.3,2651.0,0.94327]
[1645376692856,0.00200746,2651.3,2651.0,2.54327]
[1645376693056,0.67296328,2651.5,2651.0,2.54327]
[1645376693253,0.67296328,2651.5,2651.1,3.5]
[1645376693458,0.00200756,2651.3,2651.1,3.5]
[1645376693656,0.00200756,2651.3,2651.0,1.54327]
[1645376693853,0.00200756,2651.3,2651.0,2.48654]
[1645376694258,0.67296328,2651.5,2651.1,3.5]
[1645376694654,0.00202262,2651.3,2651.1,3.5]
[1645376694955,0.00202262,2651.3,2651.0,2.48654]
[1645376695554,0.67296328,2651.5,2651.0,2.48654]
[1645376695755,0.00202821,2651.3,2651.0,1.54327]
[1645376696805,0.67296328,2651.5,2651.0,1.54327]
[1645376697003,0.00202821,2651.3,2651.0,1.54327]
[1645376697204,0.00202821,2651.3,2651.1,3.5]
[1645376697405,0.00202821,2651.3,2651.2,1.0]
[1645376697609,0.00202821,2651.3,2651.2,5.1]
[1645376698002,0.67296328,2651.5,2651.2,5.1]
[1645376698203,0.00202582,2651.4,2651.2,5.1]
[1645376698405,0.00202582,2651.4,2651.3,4.39168642]
[1645376698606,0.00202582,2651.4,2651.2,1.6]
[1645376699002,0.00202582,2651.4,2651.2,1.3]
[1645376699203,0.67296328,2651.5,2651.2,1.3]
[1645376699408,0.00202448,2651.4,2651.2,1.3]
[1645376699603,0.00202448,2651.4,2651.3,0.85894964]
[1645376699803,0.00202448,2651.4,2651.3,4.35894964]
[1645376700053,0.00202448,2651.4,2651.3,4.65894964]
[1645376700251,0.00202448,2651.4,2651.3,5.65894964]
[1645376700457,0.67296328,2651.5,2651.3,5.65894964]
[1645376700652,0.67498774,2651.5,2651.4,1.0]
[1645376700852,0.67498774,2651.5,2651.4,1.3]
[1645376701353,0.67498774,2651.5,2651.4,0.3]
[1645376701551,0.67296328,2651.5,2651.3,2.45894964]
[1645376701951,0.67296328,2651.5,2651.4,0.1885]
[1645376702154,0.67296328,2651.5,2651.3,2.45894964]
[1645376702750,0.67296328,2651.5,2651.3,1.6]
[1645376702959,0.67498838,2651.5,2651.3,1.6]
[1645376703153,0.67498838,2651.5,2651.3,0.3]
[1645376703352,0.67498838,2651.5,2651.1,1.54325]
[1645376704003,0.67296328,2651.5,2651.1,1.54325]
[1645376704204,0.00202513,2651.4,2651.2,1.06710321]
[1645376704408,0.00202513,2651.4,2651.2,2.06710321]
[1645376704802,0.00202513,2651.4,2651.2,1.0]
[1645376705204,0.67296328,2651.5,2651.1,1.6]
[1645376705404,0.67296328,2651.5,2651.1,1.7885]
[1645376705405,0.00202513,2651.4,2651.1,1.7885]
[1645376705607,0.00202513,2651.4,2651.1,0.6]
[1645376705804,0.00202513,2651.4,2651.0,1.1885]
[1645376706006,0.00202513,2651.4,2651.0,2.16736916]
[1645376706205,0.00202513,2651.4,2651.0,3.11061916]
[1645376706506,0.67296328,2651.5,2651.0,6.61061916]
[1645376706706,0.00202946,2651.3,2651.1,0.94323]
[1645376707106,0.00202946,2651.3,2651.1,1.54323]
[1645376707553,0.67296328,2651.5,2651.1,1.54323]
[1645376707954,0.00202946,2651.3,2651.1,1.54323]
[1645376708756,0.67296328,2651.5,2651.4,1.0348369]
[1645376709157,0.67296328,2651.5,2651.4,1.3348369]
[1645376709356,0.67296328,2651.5,2651.4,1.6348369]
[1645376710356,0.00202838,2651.6,2651.5,0.94308]
[1645376710556,0.00202838,2651.6,2651.5,5.38616]
[1645376710762,0.00811229,2652.0,2651.6,8.5]
[1645376710957,0.00811229,2652.0,2651.7,3.5]
[1645376711315,0.00811229,2652.0,2651.8,1.0]
[1645376711505,0.25431315,2652.2,2651.9,3.5]
[1645376711701,0.00431315,2652.5,2652.0,1.24285]
[1645376711904,1.02742688,2652.6,2652.0,2.54285]
[1645376712103,1.02742688,2652.6,2652.1,3.5]
[1645376712302,0.00431315,2652.6,2652.2,1.0]
[1645376712503,0.25431315,2652.8,2652.2,1.0]
[1645376712702,0.00431315,2652.8,2652.1,1.0]
[1645376713306,1.02856866,2652.7,2652.1,1.0]
[1645376713907,0.00238753,2652.6,2652.1,1.0]
[1645376714103,0.00238753,2652.6,2652.0,0.6]
[1645376714104,0.00670068,2652.6,2652.2,4.44283]
[1645376714303,0.00238753,2652.6,2652.3,1.0]
[1645376714505,0.00238753,2652.6,2652.4,3.5]
[1645376714704,0.00238753,2652.6,2652.5,0.3]
[1645376714903,0.00431315,2653.0,2652.5,0.3]
[1645376715151,0.00238753,2652.6,2652.4,3.8]
[1645376715351,0.00238753,2652.6,2652.4,0.3]
[1645376716057,0.87633169,2652.8,2652.4,0.3]
[1645376716253,0.25,2653.5,2652.4,0.3]
[1645376716254,0.00238751,2652.6,2652.4,0.3]
[1645376717254,0.00431315,2653.4,2652.4,3.8]
[1645376717457,0.00238751,2652.6,2652.4,3.8]
[1645376717656,0.00238751,2652.6,2652.4,0.3]
[1645376718459,0.00431315,2653.0,2652.4,0.3]
[1645376718660,0.00238751,2652.6,2652.4,3.8]
[1645376718904,0.00238751,2652.6,2652.4,0.3]
[1645376719305,0.00238751,2652.6,2652.3,0.4885]
[1645376719504,0.00238751,2652.6,2652.3,0.1885]
[1645376719705,0.95998007,2653.1,2652.3,0.1885]
[1645376719905,0.00238751,2652.6,2652.3,0.1885]
[1645376720307,0.00238751,2652.6,2652.2,0.3]
[1645376720509,11.54238751,2652.6,2651.7,0.6885]
[1645376720712,11.54238751,2652.6,2651.7,0.1885]
[1645376720713,0.00431315,2652.5,2651.7,0.1885]
[1645376720911,0.00431315,2652.5,2651.2,4.6797]
[1645376720912,0.00431315,2652.5,2651.3,3.6885]
[1645376721109,1.0699907,2651.6,2651.3,0.1885]
[1645376721314,0.0067007,2652.5,2651.2,1.3682]
[1645376721508,0.0067007,2652.5,2651.2,0.1885]
[1645376722109,0.00431315,2652.5,2651.2,0.1885]
[1645376722312,0.00197336,2652.0,2651.5,0.87875871]
[1645376722552,0.00197336,2652.0,2651.5,1.17875871]
[1645376722753,0.00197336,2652.0,2651.5,1.47875871]
[1645376723154,0.00431315,2652.5,2651.5,0.6]
[1645376723555,0.00197339,2651.9,2651.2,1.4885]
[1645376723754,0.00197339,2651.9,2651.2,1.7885]
[1645376723959,0.00197339,2651.9,2651.4,0.94314]
[1645376724355,1.18096881,2652.2,2651.5,0.87184533]
[1645376724557,0.00431315,2652.1,2651.5,0.87184533]
[1645376724756,0.00197343,2651.8,2651.5,0.87184533]
[1645376725356,0.00197343,2651.8,2651.4,1.54314]
[1645376725557,0.00431315,2652.1,2651.4,1.54314]
[1645376726158,0.0020341,2651.8,2651.4,1.54314]
[1645376726806,0.00431315,2652.1,2651.4,1.54314]
[1645376727106,0.00219613,2651.7,2651.4,1.54314]
[1645376728105,0.00431315,2652.1,2651.4,1.54314]
[1645376728306,0.00219611,2651.7,2651.4,1.54314]
[1645376729306,0.00431315,2652.1,2651.4,1.54314]
[1645376729505,0.00219611,2651.7,2651.4,1.54314]
[1645376730559,0.00431315,2652.1,2651.4,1.54314]
[1645376730754,0.0019941,2651.7,2651.4,1.54314]
[1645376731554,0.0122885,2652.1,2651.4,1.54314]
[1645376731758,0.00431315,2652.1,2651.4,1.54314]
[1645376731957,0.0019941,2651.7,2651.4,1.54314]
[1645376732856,0.00431315,2652.1,2651.6,0.87195711]
[1645376733059,0.0019941,2651.7,2651.6,1.17195711]
[1645376733256,0.0019941,2651.7,2651.6,2.17195711]
[1645376733656,0.0019941,2651.7,2651.6,5.86045711]
[1645376734105,0.00431315,2652.2,2651.6,5.86045711]
[1645376734312,0.00200584,2651.8,2651.7,0.3]
[1645376735307,0.00431315,2652.3,2651.8,0.943]
[1645376735508,0.00203417,2651.9,2651.8,0.943]
[1645376735707,1.1961,2652.6,2651.8,0.943]
[1645376735708,1.16058279,2652.6,2651.8,1.243]
[1645376736309,1.16683235,2652.3,2651.8,1.243]
[1645376737760,1.11683235,2652.3,2651.8,1.243]
[1645376737962,1.16058279,2652.6,2651.8,1.243]
[1645376737963,0.00113941,2652.4,2651.8,1.243]
[1645376738160,0.00113941,2652.4,2651.9,0.94295]
[1645376738362,0.00113941,2652.4,2652.0,0.3]
[1645376738563,0.00113941,2652.4,2652.0,0.6]
[1645376738960,1.04564886,2652.6,2652.0,0.6]
[1645376739163,0.00220522,2652.4,2652.0,0.6]
[1645376740062,1.04564886,2652.6,2652.0,0.6]
[1645376740367,0.00220522,2652.4,2652.0,0.6]
[1645376741405,1.60185499,2652.5,2652.0,0.6]
[1645376741605,0.00219135,2652.4,2652.0,0.6]
[1645376742507,1.04564886,2652.6,2652.0,0.6]
[1645376742711,0.00219135,2652.4,2652.0,0.6]
[1645376744006,0.00219135,2652.4,2652.0,0.3]
[1645376744205,0.00219135,2652.4,2651.8,1.7885]
[1645376744408,1.13385965,2652.2,2651.8,1.7885]
[1645376745057,4.6487,2652.9,2651.8,1.7885]
[1645376745258,0.00219127,2652.4,2651.8,1.7885]
[1645376745657,0.00219127,2652.4,2651.8,2.73151]
[1645376746059,1.60181569,2652.8,2651.9,3.5]
[1645376746259,0.00219131,2652.4,2651.9,3.5]
[1645376746457,0.00219131,2652.4,2652.0,0.85375966]
[1645376746658,0.00219131,2652.4,2652.0,1.45375966]
[1645376747259,1.10716985,2652.7,2652.0,1.45375966]
[1645376747463,0.00219135,2652.4,2652.0,1.45375966]
[1645376748560,1.10716985,2652.7,2652.0,1.45375966]
[1645376748804,0.00219259,2652.4,2652.0,1.45375966]
[1645376749006,0.00219259,2652.4,2652.0,2.39669966]
[1645376749309,0.00219259,2652.4,2652.1,3.5]
[1645376749707,4.6487,2652.9,2652.1,3.5]
[1645376749708,4.6487,2652.9,2652.2,1.4885]
[1645376749906,0.00219259,2652.4,2652.3,3.5]
[1645376750305,0.00219259,2652.4,2652.3,4.8]
[1645376750505,0.00219259,2652.4,2652.3,4.9885]
[1645376750807,3.1779,2652.9,2652.3,1.4885]
[1645376751109,0.00219262,2652.5,2652.4,3.6884]
[1645376751306,0.00219262,2652.5,2652.4,1.1884]
[1645376751806,0.00219262,2652.5,2652.4,0.1884]
[1645376752007,0.00427245,2652.8,2652.4,0.1884]
[1645376752206,0.94341055,2653.0,2652.4,0.1884]
[1645376752207,0.947683,2653.0,2652.4,0.1884]
[1645376752407,0.00219232,2652.6,2652.4,1.21509483]
[1645376752666,0.09987532,2653.0,2652.4,1.21509483]
[1645376752866,0.09560287,2653.0,2652.4,1.21509483]
[1645376753265,0.09560287,2653.0,2652.4,0.1884]
[1645376754068,0.00427245,2653.2,2652.5,0.94276]
[1645376754267,0.00427245,2653.2,2652.6,3.8]
[1645376754466,0.00427245,2653.2,2652.7,1.1310193]
[1645376754666,0.00427245,2653.3,2652.8,3.5]
[1645376754865,0.00427245,2653.3,2652.9,1.0]
[1645376755064,0.00427245,2653.5,2652.9,1.0]
[1645376755275,0.25427245,2653.6,2652.8,0.3]
[1645376755466,1.60134376,2653.5,2652.8,0.3]
[1645376755666,1.05549156,2653.1,2652.8,0.3]
[1645376756510,1.05549156,2653.1,2652.6,1.6]
[1645376756711,1.05976401,2653.1,2652.6,0.3]
[1645376756916,1.05976401,2653.1,2652.6,1.3]
[1645376757107,1.05976401,2653.1,2652.6,0.3]
[1645376757309,0.00238736,2653.0,2652.5,1.7524]
[1645376757914,0.00238736,2653.0,2652.5,0.3]
[1645376758115,1.05976401,2653.1,2652.4,0.3]
[1645376758513,0.0023874,2652.9,2652.4,0.3]
[1645376759313,1.05976401,2653.1,2652.4,0.3]
[1645376759513,0.00238744,2652.8,2652.4,0.3]
[1645376760465,0.00238744,2652.8,2652.4,0.4884]
[1645376760660,1.05976401,2653.1,2652.4,0.7884]
[1645376760859,0.00238746,2652.7,2652.4,0.7884]
[1645376761760,1.05976401,2653.1,2652.4,0.7884]
[1645376761960,0.00238744,2652.7,2652.4,0.7884]
[1645376762162,0.00238744,2652.7,2652.6,0.90325151]
[1645376762363,0.00238744,2652.7,2652.6,1.50325151]
[1645376762560,0.00238744,2652.7,2652.6,0.6]
[1645376762760,0.00238744,2652.7,2652.6,0.3]
[1645376762963,1.05976401,2653.1,2652.5,1.3]
[1645376763160,0.00238744,2652.8,2652.5,0.6]
[1645376763361,0.00238744,2652.8,2652.4,0.6]
[1645376763807,0.00238744,2652.8,2652.4,0.55]
[1645376764009,1.15779802,2652.7,2652.4,0.55]
[1645376764410,1.16018548,2652.7,2652.4,0.55]
[1645376765412,1.15779802,2652.7,2652.4,0.55]
[1645376765619,0.00238744,2652.7,2652.4,0.55]
[1645376765813,0.00238744,2652.7,2652.4,3.68282]
[1645376766016,0.00238744,2652.7,2652.4,2.74006]
[1645376766316,0.00238744,2652.7,2652.5,1.0]
[1645376766614,1.09567803,2652.9,2652.5,1.0]
[1645376766814,0.00218595,2652.7,2652.5,1.0]
[1645376767213,0.00218595,2652.7,2652.4,1.7973]
[1645376767414,0.00218595,2652.7,2652.4,4.05]
[1645376767661,0.00427245,2652.9,2652.5,0.94273]
[1645376767858,0.00427245,2653.5,2652.5,3.33333]
[1645376768059,0.00218597,2652.7,2652.6,3.5]
[1645376768262,0.00218597,2652.7,2652.6,0.3]
[1645376768459,0.00218597,2652.7,2652.6,1.3]
[1645376768660,0.00218597,2652.7,2652.6,1.6]
[1645376768964,0.00427245,2653.5,2652.6,1.6]
[1645376769164,0.00218596,2652.8,2652.7,1.0]
[1645376769362,0.00218596,2652.8,2652.6,1.6]
[1645376770163,10.23762928,2654.0,2652.7,3.5]
[1645376770164,0.00427245,2653.5,2652.7,3.5]
[1645376770364,0.00874245,2653.2,2652.8,1.0]
[1645376770564,0.00874245,2653.2,2652.9,4.4426]
[1645376770767,0.00874245,2653.2,2653.0,1.0]
[1645376771181,1.46246932,2654.4,2653.2,18.5]
[1645376771429,0.52728617,2654.6,2653.4,15.5]
[1645376771634,0.5,2655.6,2654.2,11.42]
[1645376771635,24.75529303,2655.0,2654.2,11.42]
[1645376771832,17.53144874,2655.0,2654.3,3.5]
[1645376772030,0.14370857,2655.1,2654.9,0.93270265]
[1645376772227,0.93134983,2656.3,2655.0,3.9882]
[1645376772228,0.132469,2656.3,2655.0,3.9882]
[1645376772431,0.632469,2656.3,2655.3,1.88274]
[1645376772636,0.47986544,2656.3,2655.6,5.0]
[1645376772827,25.0,2657.0,2655.7,8.5651431]
[1645376773024,0.132469,2656.5,2656.0,0.9411707]
[1645376773226,0.132469,2656.5,2656.4,1.39037833]
[1645376773227,0.07866706,2656.5,2656.4,1.39037833]
[1645376773432,25.0,2657.0,2656.4,3.27255833]
[1645376773627,1.59942552,2656.9,2656.4,2.67038]
[1645376773828,25.0,2657.0,2656.5,1.17600409]
[1645376774128,25.0,2657.0,2656.4,0.6]
[1645376774327,25.0,2657.0,2656.5,0.3]
[1645376774526,0.94315277,2656.4,2656.3,1.54109]
[1645376774829,0.94315277,2656.4,2656.3,1.24109]
[1645376775060,25.0,2657.0,2656.3,1.24109]
[1645376775465,25.0,2657.0,2655.7,0.9416]
[1645376775466,37.2176,2657.0,2655.7,0.9416]
[1645376775767,37.2176,2657.0,2655.6,0.6882]
[1645376775768,16.54,2656.4,2655.6,0.5]
[1645376775968,11.54,2656.4,2655.2,1.1999]
[1645376776163,11.54,2656.4,2656.2,0.5]
[1645376776362,11.54,2656.4,2655.2,1.1999]
[1645376776363,12.39982087,2656.4,2655.2,1.1999]
[1645376776564,12.77742087,2656.4,2654.9,3.5]
[1645376776767,12.77742087,2656.4,2654.8,0.60447605]
[1645376776768,11.9176,2656.2,2654.8,0.60447605]
[1645376777366,12.2176,2656.2,2654.8,0.60447605]
[1645376777563,11.9176,2656.0,2654.8,0.60447605]
[1645376777764,0.00239898,2655.6,2654.8,0.60447605]
[1645376778566,11.54,2655.8,2654.8,0.90447605]
[1645376778821,11.54,2655.8,2654.8,0.60447605]
[1645376779011,0.00239641,2655.3,2654.8,0.60447605]
[1645376779815,11.54,2655.4,2654.8,0.59811029]
[1645376780213,0.00218886,2655.2,2654.8,0.59811029]
[1645376780615,0.98075946,2654.9,2654.8,0.59811029]
[1645376780914,0.98075946,2654.9,2654.8,0.89811029]
[1645376781118,0.98075946,2654.9,2654.8,1.19811029]
[1645376783367,11.54,2655.6,2654.8,1.19811029]
[1645376783965,0.00218894,2655.0,2654.8,1.19811029]
[1645376784563,0.85590479,2655.2,2654.8,1.19811029]
[1645376784765,0.00208613,2654.9,2654.8,1.19811029]
[1645376786169,0.00208613,2654.9,2654.8,0.89811029]